fUSD/lending_fUSD_20260202
["ID","MTS","AMOUNT","RATE_DAILY","PERIOD"]
[404289210,1770035445288,-4432.34468663,0.00016438,2]
[404289211,1770035445297,-4432.34468663,0.00016438,2]
[404289212,1770035445310,-4432.34468663,0.00016438,2]
[404289213,1770035445319,-4432.34468663,0.00016438,2]
[404289214,1770035445328,-4432.34468663,0.00016438,2]
[404289215,1770035445337,-4432.34468663,0.00016438,2]
[404289216,1770035445346,-4432.34468663,0.00016438,2]
[404289217,1770035445355,-4432.34468663,0.00016438,2]
[404289218,1770035445364,-4432.34468663,0.00016438,2]
[404289219,1770035445374,-4432.34468663,0.00016438,2]
[404289220,1770035445383,-4432.34468663,0.00016438,2]
[404289221,1770035445392,-4432.34468663,0.00016438,2]
[404289222,1770035445402,-4432.34468663,0.00016438,2]
[404289223,1770035445411,-4432.34468663,0.00016438,2]
[404289224,1770035445420,-4432.34468663,0.00016438,2]
[404289225,1770035445430,-4432.34468663,0.00016438,2]
[404289226,1770035445439,-4432.34468663,0.00016438,2]
[404289227,1770035445453,-4432.34468663,0.00016438,2]
[404289228,1770035445462,-4432.34468651,0.00016438,2]
[404289229,1770035445471,-250.55733734,0.00016438,2]
[404289230,1770035445480,-900.0,0.00016438,2]
[404289231,1770035445490,-800.78453244,0.00016438,2]
[404289232,1770035445499,-260.4103811,0.0001644,2]
[404289233,1770035445508,-200.02287089,0.00016478,2]
[404289234,1770035445521,-270.0455652,0.00016495,2]
[404289235,1770035445532,-715.94,0.00016515,2]
[404289236,1770035445542,-307.7,0.00016517,2]
[404289237,1770035445551,-386.0,0.00016537,2]
[404289238,1770035445560,-163.0,0.0001655,2]
[404289239,1770035445569,-280.03725112,0.0001655,2]
[404289240,1770035445578,-1500.0,0.00016568,2]
[404289241,1770035445587,-619.84098311,0.00016568,2]
[404289242,1770035445596,-1500.0,0.00016568,2]
[404289243,1770035445605,-1500.0,0.00016568,2]
[404289244,1770035445615,-1500.0,0.00016568,2]
[404289245,1770035445624,-1500.0,0.00016568,2]
[404289246,1770035445633,-505.54193795,0.00016568,2]
[404289247,1770035445642,-1500.0,0.00016568,2]
[404289248,1770035445651,-165.40489721,0.00016568,2]
[404289249,1770035445660,-345.31167706,0.00016568,2]
[404289250,1770035445670,-1315.28060531,0.00016568,2]
[404289251,1770035445679,-1500.0,0.00016568,2]
[404289252,1770035445688,-505.24936027,0.00016568,2]
[404289253,1770035445697,-1500.0,0.00016568,2]
[404289254,1770035445706,-1500.0,0.00016568,2]
[404289255,1770035445718,-1500.0,0.00016568,2]
[404289256,1770035445727,-1500.0,0.00016568,2]
[404289257,1770035445736,-545.1454494,0.00016568,2]
[404289258,1770035445745,-624.86514765,0.00016568,2]
[404289259,1770035445755,-1500.0,0.00016568,2]
[404289260,1770035445764,-1500.0,0.00016568,2]
[404289261,1770035445773,-504.6853335,0.00016568,2]
[404289262,1770035445783,-1500.0,0.00016568,2]
[404289263,1770035445792,-1500.0,0.00016568,2]
[404289264,1770035445802,-276.88278142,0.00016568,2]
[404289265,1770035445811,-152.49,0.00016573,2]
[404289266,1770035445820,-197.37,0.00016605,2]
[404289267,1770035445829,-290.39862941,0.00016605,2]
[404289268,1770035445839,-13195.72677001,0.00016636,2]
[404289269,1770035445848,-10851.34152705,0.00016637,2]
[404289270,1770035445857,-181.08010149,0.00016658,2]
[404289271,1770035445866,-1481.23780761,0.00016658,2]
[404289272,1770035445875,-217.15233878,0.00016658,2]
[404289273,1770035445884,-168.90333538,0.00016658,2]
[404289274,1770035445893,-217.15233878,0.00016658,2]
[404289275,1770035445902,-151.49674582,0.00016658,2]
[404289276,1770035445911,-891.61887448,0.00016658,2]
[404289277,1770035445921,-301.1433787,0.0001666,2]
[404289278,1770035445930,-386.0,0.00016704,2]
[404289279,1770035445939,-152.4,0.00016712,2]
[404289280,1770035445949,-433.99807711,0.00016717,2]
[404289281,1770035445958,-839.0,0.0001672,2]
[404289282,1770035445967,-839.0,0.0001672,2]
[404289283,1770035445976,-163.0,0.0001672,2]
[404289284,1770035445986,-163.0,0.0001672,2]
[404289285,1770035445995,-313.0,0.0001672,2]
[404289286,1770035446004,-386.0,0.00016723,2]
[404289287,1770035446014,-363.3662555,0.00016744,2]
[404289288,1770035446023,-294.02,0.0001677,2]
[404289289,1770035446033,-4609.0,0.00016783,2]
[404289290,1770035446043,-235.0,0.00016842,2]
[404289291,1770035446052,-500.0,0.00016857,2]
[404289292,1770035446060,-386.0,0.00016889,2]
[404289293,1770035446070,-386.0,0.00016896,2]
[404289294,1770035446079,-574.61615132,0.00016953,2]
[404289295,1770035446087,-200.0,0.00016983,2]
[404289296,1770035446097,-500.0,0.00017,7]
[404289297,1770035446106,-500.0,0.00017,7]
[404289298,1770035446115,-500.0,0.00017,7]
[404289299,1770035446125,-500.0,0.00017,7]
[404289300,1770035446135,-500.0,0.00017,7]
[404289301,1770035446145,-500.0,0.00017,7]
[404289302,1770035446154,-500.0,0.00017,7]
[404289303,1770035446163,-500.0,0.00017,7]
[404289304,1770035446173,-500.0,0.00017,7]
[404289305,1770035446182,-500.0,0.00017,7]
[404289306,1770035446191,-500.0,0.00017,7]
[404289307,1770035446200,-500.0,0.00017,7]
[404289308,1770035446210,-500.0,0.00017,7]
[404289309,1770035446219,-376.15,0.00017,7]
[404289310,1770035446228,-500.0,0.00017,7]
[404289311,1770035446237,-500.0,0.00017,7]
[404289312,1770035446247,-500.0,0.00017,7]
[404289313,1770035446256,-500.0,0.00017,7]
[404289314,1770035446265,-500.0,0.00017,7]
[404289315,1770035446274,-500.0,0.00017,7]
[404289316,1770035446283,-500.0,0.00017,7]
[404289317,1770035446292,-500.0,0.00017,7]
[404289318,1770035446302,-500.0,0.00017,7]
[404289319,1770035446312,-500.0,0.00017,7]
[404289320,1770035446322,-500.0,0.00017,7]
[404289321,1770035446331,-500.0,0.00017,7]
[404289322,1770035446341,-500.0,0.00017,7]
[404289323,1770035446350,-500.0,0.00017,7]
[404289324,1770035446359,-500.0,0.00017,7]
[404289325,1770035446368,-500.0,0.00017,7]
[404289326,1770035446378,-500.0,0.00017,7]
[404289327,1770035446387,-500.0,0.00017,7]
[404289328,1770035446396,-500.0,0.00017,7]
[404289329,1770035446405,-500.0,0.00017,7]
[404289330,1770035446415,-500.0,0.00017,7]
[404289331,1770035446424,-500.0,0.00017,7]
[404289332,1770035446434,-500.0,0.00017,7]
[404289333,1770035446446,-500.0,0.00017,7]
[404289334,1770035446455,-500.0,0.00017,7]
[404289335,1770035446464,-500.0,0.00017,7]
[404289336,1770035446474,-500.0,0.00017,7]
[404289337,1770035446483,-500.0,0.00017,7]
[404289338,1770035446493,-500.0,0.00017,7]
[404289339,1770035446502,-274.22,0.00017,7]
[404289340,1770035446511,-500.0,0.00017,7]
[404289341,1770035446523,-500.0,0.00017,7]
[404289342,1770035446533,-500.0,0.00017,7]
[404289343,1770035446542,-500.0,0.00017,7]
[404289344,1770035446551,-500.0,0.00017,7]
[404289345,1770035446560,-500.0,0.00017,7]
[404289346,1770035446569,-500.0,0.00017,7]
[404289347,1770035446578,-500.0,0.00017,7]
[404289348,1770035446587,-500.0,0.00017,7]
[404289349,1770035446596,-500.0,0.00017,7]
[404289350,1770035446605,-500.0,0.00017,7]
[404289351,1770035446614,-500.0,0.00017,7]
[404289352,1770035446624,-500.0,0.00017,7]
[404289353,1770035446634,-500.0,0.00017,7]
[404289354,1770035446643,-500.0,0.00017,7]
[404289355,1770035446652,-500.0,0.00017,7]
[404289356,1770035446661,-500.0,0.00017,7]
[404289357,1770035446670,-500.0,0.00017,7]
[404289358,1770035446679,-500.0,0.00017,7]
[404289359,1770035446687,-500.0,0.00017,7]
[404289360,1770035446697,-500.0,0.00017,7]
[404289361,1770035446706,-500.0,0.00017,7]
[404289362,1770035446716,-500.0,0.00017,7]
[404289363,1770035446726,-500.0,0.00017,7]
[404289364,1770035446736,-500.0,0.00017,7]
[404289365,1770035446746,-500.0,0.00017,7]
[404289366,1770035446755,-500.0,0.00017,7]
[404289367,1770035446764,-500.0,0.00017,7]
[404289368,1770035446773,-500.0,0.00017,7]
[404289369,1770035446783,-500.0,0.00017,7]
[404289370,1770035446792,-500.0,0.00017,7]
[404289371,1770035446802,-500.0,0.00017,7]
[404289372,1770035446811,-500.0,0.00017,7]
[404289373,1770035446819,-500.0,0.00017,7]
[404289374,1770035446829,-500.0,0.00017,7]
[404289375,1770035446839,-500.0,0.00017,7]
[404289376,1770035446849,-500.0,0.00017,7]
[404289377,1770035446858,-500.0,0.00017,7]
[404289378,1770035446869,-500.0,0.00017,7]
[404289379,1770035446878,-500.0,0.00017,7]
[404289380,1770035446888,-402.18,0.00017,7]
[404289381,1770035446896,-500.0,0.00017,7]
[404289382,1770035446906,-500.0,0.00017,7]
[404289383,1770035446917,-500.0,0.00017,7]
[404289384,1770035446926,-500.0,0.00017,7]
[404289385,1770035446935,-500.0,0.00017,7]
[404289386,1770035446944,-500.0,0.00017,7]
[404289387,1770035446953,-500.0,0.00017,7]
[404289388,1770035446962,-500.0,0.00017,7]
[404289389,1770035446971,-500.0,0.00017,7]
[404289390,1770035446980,-500.0,0.00017,7]
[404289391,1770035446989,-509.54,0.00017,7]
[404289392,1770035446998,-779.65372,0.00017,2]
[404289393,1770035447007,-2205.73614126,0.00017,3]
[404289394,1770035447016,-157726.06092768,0.00017,2]
[404289395,1770035447025,-300.0,0.00017,2]
[404289396,1770035447035,-278.0,0.00017019,2]
[404289397,1770035447045,-159.99318318,0.00017036,2]
[404289398,1770035447054,-163.0,0.0001704,2]
[404289399,1770035447063,-220.0,0.00017094,2]
[404289400,1770035447073,-715.94,0.00017112,2]
[404289401,1770035447082,-508.230722,0.00017116,2]
[404289402,1770035447091,-1628.18837233,0.00017116,2]
[404289403,1770035447102,-2000.0,0.00017116,2]
[404289404,1770035447111,-643.18674336,0.00017116,2]
[404289405,1770035447120,-2136.8475123,0.00017116,2]
[404289406,1770035447129,-974.64879752,0.00017116,2]
[404289407,1770035447139,-2000.0,0.00017116,2]
[404289408,1770035447148,-689.68040771,0.00017116,2]
[404289409,1770035447158,-1612.39809416,0.00017116,2]
[404289410,1770035447168,-1488.36339388,0.00017116,2]
[404289411,1770035447177,-1256.98671009,0.00017116,2]
[404289412,1770035447188,-2000.0,0.00017116,2]
[404289413,1770035447198,-2000.0,0.00017116,2]
[404289414,1770035447207,-506.20015718,0.00017116,2]
[404289415,1770035447216,-2000.0,0.00017116,2]
[404289416,1770035447225,-1600.0,0.00017159,2]
[404289417,1770035447235,-342.0,0.00017179,2]
[404289418,1770035447244,-1330.2,0.00017202,2]
[404289419,1770035447253,-187.78006525,0.00017206,2]
[404289420,1770035447262,-1536.04360649,0.00017206,2]
[404289421,1770035447272,-225.18697532,0.00017206,2]
[404289422,1770035447282,-225.18697532,0.00017206,2]
[404289423,1770035447291,-924.60877284,0.00017206,2]
[404289424,1770035447300,-500.0,0.00017233,2]
[404289425,1770035447309,-197.37,0.00017243,2]
[404289426,1770035447318,-1899.6725397,0.00017259,2]
[404289427,1770035447327,-1000.0,0.0001726,2]
[404289428,1770035447336,-13195.72677001,0.00017268,2]
[404289429,1770035447345,-10851.34152705,0.00017269,2]
[404289430,1770035447354,-839.0,0.0001736,2]
[404289431,1770035447366,-839.0,0.0001736,2]
[404289432,1770035447375,-809.0,0.0001736,2]
[404289433,1770035447384,-163.0,0.0001736,2]
[404289434,1770035447393,-1500.0,0.000174,2]
[404289435,1770035447402,-200.0,0.00017438,2]
[404289436,1770035447411,-334.5472959,0.00017479,2]
[404289437,1770035447420,-13442.50995431,0.000175,2]
[404289438,1770035447429,-1000.0,0.00017534,2]
[404289439,1770035447438,-200.0,0.00017541,2]
[404289440,1770035447451,-624.0,0.00017615,2]
[404289441,1770035447460,-3012.2001319,0.0001764,2]
[404289442,1770035447469,-159.99318318,0.00017645,2]
[404289443,1770035447478,-10091.57601831,0.00017658,2]
[404289444,1770035447487,-5041.0,0.00017659,2]
[404289445,1770035447496,-447.23523297,0.00017664,2]
[404289446,1770035447505,-1002.53462592,0.00017664,2]
[404289447,1770035447515,-502.03881526,0.00017664,2]
[404289448,1770035447525,-716.63993214,0.00017664,2]
[404289449,1770035447534,-1504.86417643,0.00017664,2]
[404289450,1770035447543,-839.0,0.0001768,2]
[404289451,1770035447552,-163.0,0.0001768,2]
[404289452,1770035447562,-1000.0,0.00017694,2]
[404289453,1770035447571,-715.94,0.00017709,2]
[404289454,1770035447580,-624.0,0.00017726,2]
[404289455,1770035447589,-1000.0,0.00017745,2]
[404289456,1770035447599,-150.0,0.00017751,2]
[404289457,1770035447608,-194.72792766,0.00017754,2]
[404289458,1770035447617,-1592.87721993,0.00017754,2]
[404289459,1770035447626,-233.51889341,0.00017754,2]
[404289460,1770035447636,-233.51889341,0.00017754,2]
[404289461,1770035447645,-958.81929743,0.00017754,2]
[404289462,1770035447654,-386.0,0.00017764,2]
[404289463,1770035447663,-1000.0,0.00017781,2]
[404289464,1770035447672,-1000.0,0.00017783,2]
[404289465,1770035447682,-150.0,0.00017789,2]
[404289466,1770035447691,-387.0,0.00017793,2]
[404289467,1770035447700,-162.40872272,0.00017794,2]
[404289468,1770035447709,-1500.0,0.000178,2]
[404289469,1770035447719,-502.14782899,0.000178,3]
[404289470,1770035447727,-500.0,0.00017808,2]
[404289471,1770035447736,-1000.0,0.00017808,2]
[404289472,1770035447745,-2000.0,0.0001782,2]
[404289473,1770035447754,-2000.0,0.0001782,2]
[404289474,1770035447764,-437.0,0.00017822,2]
[404289475,1770035447773,-150.0,0.00017827,2]
[404289476,1770035447783,-150.0,0.0001783,2]
[404289477,1770035447792,-25000.0,0.00017832,3]
[404289478,1770035447801,-150.0,0.00017832,2]
[404289479,1770035447810,-387.0,0.00017835,2]
[404289480,1770035447819,-25000.0,0.00017841,3]
[404289481,1770035447829,-200.0,0.00017848,2]
[404289482,1770035447839,-25000.0,0.00017849,3]
[404289483,1770035447847,-200.0,0.00017855,2]
[404289484,1770035447856,-200.0,0.00017856,2]
[404289485,1770035447865,-200.0,0.00017856,2]
[404289486,1770035447875,-200.0,0.00017856,2]
[404289487,1770035447883,-25000.0,0.00017858,3]
[404289488,1770035447892,-152.49,0.00017861,2]
[404289489,1770035447901,-1000.0,0.00017862,2]
[404289490,1770035447911,-500.0,0.00017863,2]
[404289491,1770035447920,-1000.0,0.00017863,2]
[404289492,1770035447929,-25000.0,0.00017867,3]
[404289493,1770035447939,-25000.0,0.00017876,3]
[404289494,1770035447947,-25000.0,0.00017885,3]
[404289495,1770035447956,-386.0,0.00017888,2]
[404289496,1770035447965,-152.49,0.00017891,2]
[404289497,1770035447974,-25000.0,0.00017893,3]
[404289498,1770035447984,-519.72452553,0.00017894,2]
[404289499,1770035447993,-1000.0,0.00017894,2]
[404289500,1770035448002,-13195.72677001,0.00017899,2]
[404289501,1770035448011,-10851.34152705,0.000179,2]
[404289502,1770035448020,-17205.90121961,0.000179,3]
[404289503,1770035448029,-288.97411293,0.000179,2]
[404289504,1770035448038,-5146.17023235,0.000179,2]
[404289505,1770035448047,-574.61615132,0.000179,2]
[404289506,1770035448056,-12579.0,0.000179,2]
[404289507,1770035448064,-25000.0,0.00017902,3]
[404289508,1770035448073,-25000.0,0.00017911,3]
[404289509,1770035448082,-500.0,0.00017918,2]
[404289510,1770035448090,-25000.0,0.0001792,3]
[404289511,1770035448099,-25000.0,0.00017929,3]
[404289512,1770035448107,-196.02,0.00017933,2]
[404289513,1770035448116,-25000.0,0.00017937,3]
[404289514,1770035448125,-275.02857155,0.0001794,2]
[404289522,1770035448292,-25000.0,0.00017946,3]
[404289524,1770035448301,-1000.0,0.00017947,2]
[404289526,1770035448311,-25000.0,0.00017955,3]
[404289528,1770035448319,-196.02,0.00017955,2]
[404289530,1770035448328,-153.21504762,0.00017956,2]
[404289532,1770035448337,-200.0,0.00017958,2]
[404289534,1770035448346,-25000.0,0.00017964,3]
[404289536,1770035448355,-1330.2,0.00017966,2]
[404289538,1770035448365,-242.83565079,0.00017966,2]
[404289540,1770035448374,-505.94629065,0.0001797,2]
[404289542,1770035448384,-500.0,0.0001797,2]
[404289544,1770035448393,-200.009499,0.00017971,2]
[404289546,1770035448402,-506.1208044,0.00017972,2]
[404289548,1770035448411,-25000.0,0.00017973,3]
[404289549,1770035448420,-3368.6934141,0.00017976,2]
[404289550,1770035448429,-196.0164064,0.00017977,2]
[404289551,1770035448439,-25000.0,0.00017981,3]
[404289552,1770035448451,-500.0,0.00017982,2]
[404289553,1770035448460,-337.39744568,0.0001799,2]
[404289554,1770035448470,-25000.0,0.0001799,3]
[404289555,1770035448478,-150.0,0.00017993,2]
[404289556,1770035448488,-81003.5884014,0.00017996,2]
[404289557,1770035448498,-3581.4634973,0.00017996,2]
[404289558,1770035448506,-331.2007328,0.00017996,2]
[404289559,1770035448518,-268225.4845308,0.00017996,2]
[404289560,1770035448527,-91370.7680853,0.00017996,2]
[404289561,1770035448536,-153.40029052,0.00017999,2]
[404289562,1770035448544,-25000.0,0.00017999,3]
[404289563,1770035448553,-300.0,0.00017999,2]
[404289564,1770035448562,-300.0,0.00017999,2]
[404289565,1770035448578,-300.0,0.00017999,2]
[404289566,1770035448587,-300.0,0.00017999,2]
[404289567,1770035448596,-247357.45952899,0.00018,2]
[404289568,1770035448604,-2277629.49532862,0.00018,2]
[404289569,1770035448820,-646.28640216,0.00018,2]
[404289570,1770035448833,-1159.40000006,0.00018,2]
[404289571,1770035449141,-686.78059288,0.00018,2]
[404289572,1770035449218,-1685.71,0.00018,2]
[404289573,1770035449231,-375.82408778,0.00018,2]
[404289574,1770035449347,-1086.88479984,0.00018,2]
[404289575,1770035449359,-37168.67320018,0.00018,2]
[404289576,1770035449382,-661.53830446,0.00018,2]
[404289577,1770035449396,-624.14468358,0.00018,2]
[404289578,1770035449409,-2505.35903128,0.00018,2]
[404289579,1770035449425,-3481.67361985,0.00018,2]
[404289580,1770035449435,-6864.47252796,0.00018,2]
[404289581,1770035449452,-13296.30416408,0.00018,2]
[404289582,1770035449463,-1251.6250005,0.00018,2]
[404289583,1770035449474,-31289.67660937,0.00018,2]
[404289584,1770035449485,-6094.98962257,0.00018,2]
[404289585,1770035449496,-318.19988001,0.00018,2]
[404289586,1770035449508,-4095.31242003,0.00018,2]
[404289587,1770035449519,-970.09300377,0.00018,2]
[404289588,1770035839463,-166.66,0.00011156,2]
[404289589,1770035854391,-166.66,0.00011391,2]
[404289590,1770036143676,-10000.01,0.00011273,2]
[404289591,1770036143912,-10000.01,0.00011273,2]
[404289592,1770036144022,-10000.01,0.00011273,2]
[404289593,1770036144155,-10000.01,0.00011273,2]
[404289594,1770036146648,-3361.36,0.00011273,2]
[404289595,1770036146680,-3277.29,0.00011273,2]
[404289596,1770036313443,-4769.95,0.00011349,2]
[404289597,1770036313467,-460.11,0.00011349,2]
[404289600,1770036409655,-239.92,0.000116,2]
[404289601,1770036409687,-166.66,0.00011625,2]
[404289602,1770036409716,-250.0,0.00011632,2]
[404289603,1770036409743,-300.0,0.00011639,2]
[404289604,1770036409774,-500.0,0.00011652,2]
[404289605,1770036410046,-300.0,0.00011689,2]
[404289606,1770036410073,-260.54889749,0.00011689,2]
[404289607,1770036415572,-1343.9,0.00011732,2]
[404289608,1770036415599,-1112.21,0.00011758,2]
[404289609,1770036421645,-87.79,0.00011758,2]
[404289610,1770036421671,-1200.0,0.00011758,2]
[404289611,1770036421702,-300.0,0.00011758,2]
[404289612,1770036421732,-150.0,0.00011758,2]
[404289613,1770036421962,300.0,0.00011758,2]
[404289618,1770036434484,200.0,0.000155,4]
[404289671,1770036611250,-150.0,0.00011758,2]
[404289672,1770036611279,-300.0,0.00011758,2]
[404289673,1770036611308,-1200.0,0.00011758,2]
[404289674,1770036611336,-210.67863296,0.00011758,2]
[404289675,1770036611367,-152.03521203,0.00011759,2]
[404289676,1770036611394,-152.03521203,0.00011759,2]
[404289677,1770036611642,-3100.0,0.00011759,2]
[404289678,1770036611657,-5000.01,0.00011759,2]
[404289679,1770036611693,-5000.01,0.00011759,2]
[404289680,1770036611833,-387.02075338,0.00011759,2]
[404289681,1770036611863,-1198.00937762,0.00011759,2]
[404289682,1770036611891,-631.94036038,0.00011759,2]
[404289683,1770036611943,-566.06901724,0.00011759,2]
[404289684,1770036611973,-500.0,0.00011759,2]
[404289685,1770036612003,-1500.01,0.00011759,2]
[404289686,1770036612044,-999.99,0.00011759,2]
[404289687,1770036612077,-500.0,0.00011852,2]
[404289688,1770036612113,-500.0,0.00011852,2]
[404289689,1770036612143,-500.0,0.00011852,2]
[404289690,1770036612172,-500.0,0.00011852,2]
[404289691,1770036612201,-500.0,0.00011852,2]
[404289692,1770036612277,-500.0,0.00011852,2]
[404289693,1770036612305,-151.0,0.00011852,2]
[404289694,1770036612333,-500.0,0.00011852,2]
[404289695,1770036612360,-151.0,0.00011852,2]
[404289696,1770036612387,-211.73556923,0.00011852,2]
[404289697,1770036612415,-151.0,0.00011852,2]
[404289698,1770036612442,-151.0,0.00011852,2]
[404289699,1770036612470,-151.0,0.00011852,2]
[404289700,1770036612497,-151.0,0.00011852,2]
[404289701,1770036612532,-151.0,0.00011852,2]
[404289702,1770036612560,-151.0,0.00011852,2]
[404289703,1770036612587,-9.53886154,0.00011852,2]
[404289704,1770036612983,-141.46113846,0.00011852,2]
[404289705,1770036613013,-151.0,0.00011852,2]
[404289706,1770036613043,-151.0,0.00011852,2]
[404289707,1770036613072,-500.0,0.00011852,2]
[404289708,1770036613103,-500.0,0.00011852,2]
[404289709,1770036613133,-500.0,0.00011852,2]
[404289710,1770036613162,-500.0,0.00011852,2]
[404289711,1770036613827,-155.20670769,0.00011852,2]
[404289712,1770036613847,-113.08772308,0.00011852,2]
[404289713,1770036614165,-231.70556923,0.00011852,2]
[404289714,1770036614199,-500.0,0.00011852,2]
[404289715,1770036614229,-500.0,0.00011852,2]
[404289716,1770036614260,-500.0,0.00011852,2]
[404289717,1770036614291,-500.0,0.00011852,2]
[404289718,1770036614322,-36.59886154,0.00011852,2]
[404289719,1770036614413,-463.40113846,0.00011852,2]
[404289720,1770036614443,-500.0,0.00011852,2]
[404289721,1770036614475,-500.0,0.00011852,2]
[404289722,1770036614505,-151.0,0.00011856,2]
[404289723,1770036614533,-151.0,0.00011856,2]
[404289724,1770036614565,-500.0,0.00011858,2]
[404289725,1770036614880,224.93163045,0.00011849,2]
[404289726,1770036623436,244.27609263,0.00011758,2]
[404289727,1770036623459,5000.01,0.00011758,2]
[404289728,1770036623485,5000.01,0.00011758,2]
[404289729,1770036623508,5000.01,0.00011758,2]
[404289730,1770036623531,5000.01,0.00011758,2]
[404289731,1770036623552,5000.01,0.00011758,2]
[404289732,1770036623576,4755.73390737,0.00011758,2]
[404289733,1770036626416,-500.0,0.00011858,2]
[404289734,1770036626444,-232.66624481,0.00011858,2]
[404289735,1770036626473,-166.57713404,0.00011858,2]
[404289736,1770036626502,-473.42416453,0.00011858,2]
[404289737,1770036626532,-500.0,0.00011858,2]
[404289738,1770036626563,-500.0,0.00011858,2]
[404289739,1770036626777,-500.0,0.00011858,2]
[404289740,1770036626808,-500.0,0.00011858,2]
[404289741,1770036626847,-500.0,0.00011858,2]
[404289742,1770036626879,-200.0,0.00011858,2]
[404289743,1770036626906,-218.15633909,0.00011858,2]
[404289744,1770036626936,-500.0,0.00011858,2]
[404289745,1770036627020,-500.0,0.00011858,2]
[404289746,1770036627050,-500.0,0.00011858,2]
[404289747,1770036627080,-500.0,0.00011858,2]
[404289748,1770036627109,-500.0,0.00011858,2]
[404289749,1770036627139,-500.0,0.00011858,2]
[404289750,1770036627487,-500.0,0.00011858,2]
[404289751,1770036627519,-500.0,0.00011858,2]
[404289752,1770036627550,-500.0,0.00011858,2]
[404289753,1770036627582,-500.0,0.00011858,2]
[404289754,1770036627615,-500.0,0.00011858,2]
[404289755,1770036629452,-500.0,0.00011858,2]
[404289756,1770036629483,-500.0,0.00011858,2]
[404289757,1770036629515,-500.0,0.00011858,2]
[404289758,1770036629546,-500.0,0.00011858,2]
[404289759,1770036629577,-500.0,0.00011858,2]
[404289760,1770036629702,-500.0,0.00011858,2]
[404289761,1770036629732,-500.0,0.00011858,2]
[404289762,1770036629762,-551.70022659,0.00011858,2]
[404289763,1770036629792,-500.0,0.00011858,2]
[404289764,1770036629826,-396.60954682,0.00011858,2]
[404289765,1770036630098,-103.39045318,0.00011858,2]
[404289766,1770036630125,-150.99,0.00011858,2]
[404289769,1770036631617,-1518.79195812,0.00011858,2]
[404289770,1770036631629,-950.69681676,0.00011858,2]
[404289771,1770036631641,-577.04334775,0.00011858,2]
[404289772,1770036631674,-988.28202685,0.00011858,2]
[404289773,1770036631686,-2257.89935505,0.00011858,2]
[404289774,1770036631698,-698.60816711,0.00011858,2]
[404289775,1770036631710,-1326.4511873,0.00011858,2]
[404289776,1770036631741,-1682.21714106,0.00011858,2]
[404289777,1770036631750,-5549.43256805,0.00011859,2]
[404289778,1770036631762,-969.86662352,0.00011859,2]
[404289779,1770036631799,-99574.59665247,0.00011859,2]
[404289780,1770036631811,-31474.94101921,0.00011859,2]
[404289781,1770036631825,-23393.17675076,0.00011859,2]
[404289782,1770036631856,-556.0809441,0.00011859,2]
[404289835,1770036640160,-2738481.90544189,0.00011859,2]
[404289836,1770036640170,-500.0,0.00011859,2]
[404289837,1770036640179,-9999.99,0.00011859,2]
[404289838,1770036640188,-999.99,0.00011859,2]
[404289839,1770036640198,-166.66,0.0001186,2]
[404289840,1770036640208,-427.93748206,0.00011917,2]
[404289841,1770036640217,-2295.867,0.00011958,2]